{"text_format":"1","workbook":"xlsx","n_sheets":5,"sheets":["Guidelines for data entry","Entry Sheet","Examples Sheet","Dictionary","Valid Term List"],"not_rendered":{"charts":0,"images":0,"macros":0,"external_links":2,"defined_names":11,"comments":2,"pivot_tables":0},"unopened":[],"bounds":{"document_bytes":16777216,"sheet_cells":100000,"rows_first":2000,"rows_last":500,"rows_between":2000,"halvings":0,"cell_chars":16384,"cell_head_chars":4096},"cells_cut":0,"cells_raw":0,"read":"whole","date_system":"1900"}

{"sheet":"Guidelines for data entry","index":0,"n_rows":42,"n_cols":3,"rows_kept":42,"cut":false,"hidden":false,"merged":[[2,0,2,2],[5,0,5,2],[26,0,26,2],[36,0,36,2],[41,0,41,2]]}
["GUIDELINES FOR DATA ENTRY"]
[]
["This spreadsheet is designed to enable you to enter data in a format that is easily compatible with TVERC’s database on Recorder 6. By using the spreadsheet, you will save time spent on processing data, and therefore reduce costs for TVERC, its partners and customers."]
[]
["STEP 1"]
["Use File > Save As to rename the spreadsheet. If possible, include the place and/or taxon group and date(s) in the new filename, e.g. Farmoor_birds_Jul_2016.xlsx."]
[]
["STEP 2"]
["Start filling in your records in the Entry Sheet, using a single line for each observation. See the Examples Sheet to see how your records might look."]
[]
["Column letter","Column title","Instructions"]
["A","English Name","Type in the usual common name for the species, or use the drop-down list to select the name."]
["B","Scientific Name","This will usually fill in the Latin name automatically. If it doesn’t then type in the name yourself."]
["C","Abundance","Type in how many you observed. This can be a number (e.g. 10), a range (e.g. >1000 or 500+), a single word (e.g. \"Present\") or a relative abundance from the DAFOR scale (e.g. “Dominant”)."]
["D","Sex/Stage","If you made any observations that give clues about the sex of the individual(s) seen, whether they might be breeding or their life stage, select the most appropriate description from the drop-down list."]
["E","Date","Type in the date when you made the observation. An exact date is best (e.g. 05/07/2016) but a vague date (2016) or range of dates (Jun to Jul 2016) is still helpful."]
["F","GridRef","Provide the Ordnance Survey (OS) grid reference to the greatest precision you can. A six figure grid reference should be given as standard but greater accuracy could be useful for notable species.  A four figure grid reference may be more appropriate for mobile species. There is guidance on how to construct a grid reference here."]
["G","Site Name","Only fill this column in if the observation was made at a designated area (e.g. an SSSI or NNR) or a Local Wildlife Site. Give the full name of the site."]
["H","Locality","Use this column to give an address or nearby place name. If you visited a larger wildlife site (with details in the previous column), you may use this column to locate your observation at a particular sub-site/compartment. What you write here should enable someone else to find your location on a map. This will help TVERC to double check your grid reference."]
["I","Recorder","The recorder is who saw it. This may be you or somebody else if you are entering records on their behalf. Please type in the recorder’s full name, not just initials or a first name."]
["J","Determiner","If somebody else checked that the species was what the recorder thought, they are named as the determiner. Please type in the determiner’s full name, not just initials or a first name."]
["K","Type of Record","Use the drop-down list to give the best description of how the record was obtained. If none of the descriptions apply, leave this column blank."]
["L","Comment","Add any further information that is relevant to the record."]
["M","Incidentals"]
[]
["STEP 3"]
["When you have finished entering your data, save the file and send it to TVERC (contact details below), along with your email address and/or telephone number."]
[]
[null,"Thames Valley Environmental Records Centre (TVERC)"]
[null,"c/o Oxfordshire County Council"]
[null,"Signal Court, Old Station Way"]
[null,"Eynsham, OX29 4TL"]
[]
[null,"Tel: 01865 815451"]
[null,"Email: tverc@oxfordshire.gov.uk"]
[]
["Your contact details are requierd in case we have to get back to you to clarify details of a record or need to separate two recorders with similar names."]
[]
[]
[]
[]
["THANK YOU FOR FOLLOWING THESE GUIDELINES. IF YOU HAVE ANY QUESTIONS ABOUT BIOLOGICAL OR GEOLOGICAL DATA, PLEASE CONTACT US."]

{"sheet":"Entry Sheet","index":1,"n_rows":500,"n_cols":12,"rows_kept":500,"cut":false,"hidden":false,"merged":[]}
["Usual name","Latin name","How many?","Of what?","When?","Ordnance Survey grid reference","Definite wildlife site","Location if not on wildlife site or sub-site of wildlife site","Who saw it?","Who checked it was what was thought? (often an expert!)","How was record obtained?"]
["English Name","Scientific Name","Abundance","Sex/Stage","Date","GridRef","Site Name","Locality","Recorder","Determiner","Type of Record","Comment"]
[null,{"$f":"VLOOKUP(A3,GenRange,2,FALSE)","v":{"$error":"#N/A"}}]
[null,{"$error":"#N/A"}]
[null,{"$error":"#N/A"}]
[null,{"$error":"#N/A"}]
[null,{"$error":"#N/A"}]
[null,{"$error":"#N/A"}]
[null,{"$error":"#N/A"}]
[null,{"$error":"#N/A"}]
[null,{"$error":"#N/A"}]
[null,{"$error":"#N/A"}]
[null,{"$error":"#N/A"}]
[null,{"$error":"#N/A"}]
[null,{"$error":"#N/A"}]
[null,{"$error":"#N/A"}]
[null,{"$error":"#N/A"}]
[null,{"$error":"#N/A"}]
[null,{"$error":"#N/A"}]
[null,{"$error":"#N/A"}]
[null,{"$error":"#N/A"}]
[null,{"$error":"#N/A"}]
[null,{"$error":"#N/A"}]
[null,{"$error":"#N/A"}]
[null,{"$error":"#N/A"}]
[null,{"$error":"#N/A"}]
[null,{"$error":"#N/A"}]
[null,{"$error":"#N/A"}]
[null,{"$error":"#N/A"}]
[null,{"$error":"#N/A"}]
[null,{"$error":"#N/A"}]
[null,{"$error":"#N/A"}]
[null,{"$error":"#N/A"}]
[null,{"$error":"#N/A"}]
[null,{"$error":"#N/A"}]
[null,{"$error":"#N/A"}]
[null,{"$error":"#N/A"}]
[null,{"$error":"#N/A"}]
[null,{"$error":"#N/A"}]
[null,{"$error":"#N/A"}]
[null,{"$error":"#N/A"}]
[null,{"$error":"#N/A"}]
[null,{"$error":"#N/A"}]
[null,{"$error":"#N/A"}]
[null,{"$error":"#N/A"}]
[null,{"$error":"#N/A"}]
[null,{"$error":"#N/A"}]
[null,{"$error":"#N/A"}]
[null,{"$error":"#N/A"}]
[null,{"$error":"#N/A"}]
[null,{"$error":"#N/A"}]
[null,{"$error":"#N/A"}]
[null,{"$error":"#N/A"}]
[null,{"$error":"#N/A"}]
[null,{"$error":"#N/A"}]
[null,{"$error":"#N/A"}]
[null,{"$error":"#N/A"}]
[null,{"$error":"#N/A"}]
[null,{"$error":"#N/A"}]
[null,{"$error":"#N/A"}]
[null,{"$error":"#N/A"}]
[null,{"$error":"#N/A"}]
[null,{"$error":"#N/A"}]
[null,{"$error":"#N/A"}]
[null,{"$error":"#N/A"}]
[null,{"$error":"#N/A"}]
[null,{"$f":"VLOOKUP(A67,GenRange,2,FALSE)","v":{"$error":"#N/A"}}]
[null,{"$error":"#N/A"}]
[null,{"$error":"#N/A"}]
[null,{"$error":"#N/A"}]
[null,{"$error":"#N/A"}]
[null,{"$error":"#N/A"}]
[null,{"$error":"#N/A"}]
[null,{"$error":"#N/A"}]
[null,{"$error":"#N/A"}]
[null,{"$error":"#N/A"}]
[null,{"$error":"#N/A"}]
[null,{"$error":"#N/A"}]
[null,{"$error":"#N/A"}]
[null,{"$error":"#N/A"}]
[null,{"$error":"#N/A"}]
[null,{"$error":"#N/A"}]
[null,{"$error":"#N/A"}]
[null,{"$error":"#N/A"}]
[null,{"$error":"#N/A"}]
[null,{"$error":"#N/A"}]
[null,{"$error":"#N/A"}]
[null,{"$error":"#N/A"}]
[null,{"$error":"#N/A"}]
[null,{"$error":"#N/A"}]
[null,{"$error":"#N/A"}]
[null,{"$error":"#N/A"}]
[null,{"$error":"#N/A"}]
[null,{"$error":"#N/A"}]
[null,{"$error":"#N/A"}]
[null,{"$error":"#N/A"}]
[null,{"$error":"#N/A"}]
[null,{"$error":"#N/A"}]
[null,{"$error":"#N/A"}]
[null,{"$error":"#N/A"}]
[null,{"$error":"#N/A"}]
[null,{"$error":"#N/A"}]
[null,{"$error":"#N/A"}]
[null,{"$error":"#N/A"}]
[null,{"$error":"#N/A"}]
[null,{"$error":"#N/A"}]
[null,{"$error":"#N/A"}]
[null,{"$error":"#N/A"}]
[null,{"$error":"#N/A"}]
[null,{"$error":"#N/A"}]
[null,{"$error":"#N/A"}]
[null,{"$error":"#N/A"}]
[null,{"$error":"#N/A"}]
[null,{"$error":"#N/A"}]
[null,{"$error":"#N/A"}]
[null,{"$error":"#N/A"}]
[null,{"$error":"#N/A"}]
[null,{"$error":"#N/A"}]
[null,{"$error":"#N/A"}]
[null,{"$error":"#N/A"}]
[null,{"$error":"#N/A"}]
[null,{"$error":"#N/A"}]
[null,{"$error":"#N/A"}]
[null,{"$error":"#N/A"}]
[null,{"$error":"#N/A"}]
[null,{"$error":"#N/A"}]
[null,{"$error":"#N/A"}]
[null,{"$error":"#N/A"}]
[null,{"$error":"#N/A"}]
[null,{"$error":"#N/A"}]
[null,{"$f":"VLOOKUP(A131,GenRange,2,FALSE)","v":{"$error":"#N/A"}}]
[null,{"$error":"#N/A"}]
[null,{"$error":"#N/A"}]
[null,{"$error":"#N/A"}]
[null,{"$error":"#N/A"}]
[null,{"$error":"#N/A"}]
[null,{"$error":"#N/A"}]
[null,{"$error":"#N/A"}]
[null,{"$error":"#N/A"}]
[null,{"$error":"#N/A"}]
[null,{"$error":"#N/A"}]
[null,{"$error":"#N/A"}]
[null,{"$error":"#N/A"}]
[null,{"$error":"#N/A"}]
[null,{"$error":"#N/A"}]
[null,{"$error":"#N/A"}]
[null,{"$error":"#N/A"}]
[null,{"$error":"#N/A"}]
[null,{"$error":"#N/A"}]
[null,{"$error":"#N/A"}]
[null,{"$error":"#N/A"}]
[null,{"$error":"#N/A"}]
[null,{"$error":"#N/A"}]
[null,{"$error":"#N/A"}]
[null,{"$error":"#N/A"}]
[null,{"$error":"#N/A"}]
[null,{"$error":"#N/A"}]
[null,{"$error":"#N/A"}]
[null,{"$error":"#N/A"}]
[null,{"$error":"#N/A"}]
[null,{"$error":"#N/A"}]
[null,{"$error":"#N/A"}]
[null,{"$error":"#N/A"}]
[null,{"$error":"#N/A"}]
[null,{"$error":"#N/A"}]
[null,{"$error":"#N/A"}]
[null,{"$error":"#N/A"}]
[null,{"$error":"#N/A"}]
[null,{"$error":"#N/A"}]
[null,{"$error":"#N/A"}]
[null,{"$error":"#N/A"}]
[null,{"$error":"#N/A"}]
[null,{"$error":"#N/A"}]
[null,{"$error":"#N/A"}]
[null,{"$error":"#N/A"}]
[null,{"$error":"#N/A"}]
[null,{"$error":"#N/A"}]
[null,{"$error":"#N/A"}]
[null,{"$error":"#N/A"}]
[null,{"$error":"#N/A"}]
[null,{"$error":"#N/A"}]
[null,{"$error":"#N/A"}]
[null,{"$error":"#N/A"}]
[null,{"$error":"#N/A"}]
[null,{"$error":"#N/A"}]
[null,{"$error":"#N/A"}]
[null,{"$error":"#N/A"}]
[null,{"$error":"#N/A"}]
[null,{"$error":"#N/A"}]
[null,{"$error":"#N/A"}]
[null,{"$error":"#N/A"}]
[null,{"$error":"#N/A"}]
[null,{"$error":"#N/A"}]
[null,{"$error":"#N/A"}]
[null,{"$f":"VLOOKUP(A195,GenRange,2,FALSE)","v":{"$error":"#N/A"}}]
[null,{"$error":"#N/A"}]
[null,{"$error":"#N/A"}]
[null,{"$error":"#N/A"}]
[null,{"$error":"#N/A"}]
[null,{"$error":"#N/A"}]
[null,{"$error":"#N/A"}]
[null,{"$error":"#N/A"}]
[null,{"$error":"#N/A"}]
[null,{"$error":"#N/A"}]
[null,{"$error":"#N/A"}]
[null,{"$error":"#N/A"}]
[null,{"$error":"#N/A"}]
[null,{"$error":"#N/A"}]
[null,{"$error":"#N/A"}]
[null,{"$error":"#N/A"}]
[null,{"$error":"#N/A"}]
[null,{"$error":"#N/A"}]
[null,{"$error":"#N/A"}]
[null,{"$error":"#N/A"}]
[null,{"$error":"#N/A"}]
[null,{"$error":"#N/A"}]
[null,{"$error":"#N/A"}]
[null,{"$error":"#N/A"}]
[null,{"$error":"#N/A"}]
[null,{"$error":"#N/A"}]
[null,{"$error":"#N/A"}]
[null,{"$error":"#N/A"}]
[null,{"$error":"#N/A"}]
[null,{"$error":"#N/A"}]
[null,{"$error":"#N/A"}]
[null,{"$error":"#N/A"}]
[null,{"$error":"#N/A"}]
[null,{"$error":"#N/A"}]
[null,{"$error":"#N/A"}]
[null,{"$error":"#N/A"}]
[null,{"$error":"#N/A"}]
[null,{"$error":"#N/A"}]
[null,{"$error":"#N/A"}]
[null,{"$error":"#N/A"}]
[null,{"$error":"#N/A"}]
[null,{"$error":"#N/A"}]
[null,{"$error":"#N/A"}]
[null,{"$error":"#N/A"}]
[null,{"$error":"#N/A"}]
[null,{"$error":"#N/A"}]
[null,{"$error":"#N/A"}]
[null,{"$error":"#N/A"}]
[null,{"$error":"#N/A"}]
[null,{"$error":"#N/A"}]
[null,{"$error":"#N/A"}]
[null,{"$error":"#N/A"}]
[null,{"$error":"#N/A"}]
[null,{"$error":"#N/A"}]
[null,{"$error":"#N/A"}]
[null,{"$error":"#N/A"}]
[null,{"$error":"#N/A"}]
[null,{"$error":"#N/A"}]
[null,{"$error":"#N/A"}]
[null,{"$error":"#N/A"}]
[null,{"$error":"#N/A"}]
[null,{"$error":"#N/A"}]
[null,{"$error":"#N/A"}]
[null,{"$error":"#N/A"}]
[null,{"$f":"VLOOKUP(A259,GenRange,2,FALSE)","v":{"$error":"#N/A"}}]
[null,{"$error":"#N/A"}]
[null,{"$error":"#N/A"}]
[null,{"$error":"#N/A"}]
[null,{"$error":"#N/A"}]
[null,{"$error":"#N/A"}]
[null,{"$error":"#N/A"}]
[null,{"$error":"#N/A"}]
[null,{"$error":"#N/A"}]
[null,{"$error":"#N/A"}]
[null,{"$error":"#N/A"}]
[null,{"$error":"#N/A"}]
[null,{"$error":"#N/A"}]
[null,{"$error":"#N/A"}]
[null,{"$error":"#N/A"}]
[null,{"$error":"#N/A"}]
[null,{"$error":"#N/A"}]
[null,{"$error":"#N/A"}]
[null,{"$error":"#N/A"}]
[null,{"$error":"#N/A"}]
[null,{"$error":"#N/A"}]
[null,{"$error":"#N/A"}]
[null,{"$error":"#N/A"}]
[null,{"$error":"#N/A"}]
[null,{"$error":"#N/A"}]
[null,{"$error":"#N/A"}]
[null,{"$error":"#N/A"}]
[null,{"$error":"#N/A"}]
[null,{"$error":"#N/A"}]
[null,{"$error":"#N/A"}]
[null,{"$error":"#N/A"}]
[null,{"$error":"#N/A"}]
[null,{"$error":"#N/A"}]
[null,{"$error":"#N/A"}]
[null,{"$error":"#N/A"}]
[null,{"$error":"#N/A"}]
[null,{"$error":"#N/A"}]
[null,{"$error":"#N/A"}]
[null,{"$error":"#N/A"}]
[null,{"$error":"#N/A"}]
[null,{"$error":"#N/A"}]
[null,{"$error":"#N/A"}]
[null,{"$error":"#N/A"}]
[null,{"$error":"#N/A"}]
[null,{"$error":"#N/A"}]
[null,{"$error":"#N/A"}]
[null,{"$error":"#N/A"}]
[null,{"$error":"#N/A"}]
[null,{"$error":"#N/A"}]
[null,{"$error":"#N/A"}]
[null,{"$error":"#N/A"}]
[null,{"$error":"#N/A"}]
[null,{"$error":"#N/A"}]
[null,{"$error":"#N/A"}]
[null,{"$error":"#N/A"}]
[null,{"$error":"#N/A"}]
[null,{"$error":"#N/A"}]
[null,{"$error":"#N/A"}]
[null,{"$error":"#N/A"}]
[null,{"$error":"#N/A"}]
[null,{"$error":"#N/A"}]
[null,{"$error":"#N/A"}]
[null,{"$error":"#N/A"}]
[null,{"$error":"#N/A"}]
[null,{"$f":"VLOOKUP(A323,GenRange,2,FALSE)","v":{"$error":"#N/A"}}]
[null,{"$error":"#N/A"}]
[null,{"$error":"#N/A"}]
[null,{"$error":"#N/A"}]
[null,{"$error":"#N/A"}]
[null,{"$error":"#N/A"}]
[null,{"$error":"#N/A"}]
[null,{"$error":"#N/A"}]
[null,{"$error":"#N/A"}]
[null,{"$error":"#N/A"}]
[null,{"$error":"#N/A"}]
[null,{"$error":"#N/A"}]
[null,{"$error":"#N/A"}]
[null,{"$error":"#N/A"}]
[null,{"$error":"#N/A"}]
[null,{"$error":"#N/A"}]
[null,{"$error":"#N/A"}]
[null,{"$error":"#N/A"}]
[null,{"$error":"#N/A"}]
[null,{"$error":"#N/A"}]
[null,{"$error":"#N/A"}]
[null,{"$error":"#N/A"}]
[null,{"$error":"#N/A"}]
[null,{"$error":"#N/A"}]
[null,{"$error":"#N/A"}]
[null,{"$error":"#N/A"}]
[null,{"$error":"#N/A"}]
[null,{"$error":"#N/A"}]
[null,{"$error":"#N/A"}]
[null,{"$error":"#N/A"}]
[null,{"$error":"#N/A"}]
[null,{"$error":"#N/A"}]
[null,{"$error":"#N/A"}]
[null,{"$error":"#N/A"}]
[null,{"$error":"#N/A"}]
[null,{"$error":"#N/A"}]
[null,{"$error":"#N/A"}]
[null,{"$error":"#N/A"}]
[null,{"$error":"#N/A"}]
[null,{"$error":"#N/A"}]
[null,{"$error":"#N/A"}]
[null,{"$error":"#N/A"}]
[null,{"$error":"#N/A"}]
[null,{"$error":"#N/A"}]
[null,{"$error":"#N/A"}]
[null,{"$error":"#N/A"}]
[null,{"$error":"#N/A"}]
[null,{"$error":"#N/A"}]
[null,{"$error":"#N/A"}]
[null,{"$error":"#N/A"}]
[null,{"$error":"#N/A"}]
[null,{"$error":"#N/A"}]
[null,{"$error":"#N/A"}]
[null,{"$error":"#N/A"}]
[null,{"$error":"#N/A"}]
[null,{"$error":"#N/A"}]
[null,{"$error":"#N/A"}]
[null,{"$error":"#N/A"}]
[null,{"$error":"#N/A"}]
[null,{"$error":"#N/A"}]
[null,{"$error":"#N/A"}]
[null,{"$error":"#N/A"}]
[null,{"$error":"#N/A"}]
[null,{"$error":"#N/A"}]
[null,{"$f":"VLOOKUP(A387,GenRange,2,FALSE)","v":{"$error":"#N/A"}}]
[null,{"$error":"#N/A"}]
[null,{"$error":"#N/A"}]
[null,{"$error":"#N/A"}]
[null,{"$error":"#N/A"}]
[null,{"$error":"#N/A"}]
[null,{"$error":"#N/A"}]
[null,{"$error":"#N/A"}]
[null,{"$error":"#N/A"}]
[null,{"$error":"#N/A"}]
[null,{"$error":"#N/A"}]
[null,{"$error":"#N/A"}]
[null,{"$error":"#N/A"}]
[null,{"$error":"#N/A"}]
[null,{"$error":"#N/A"}]
[null,{"$error":"#N/A"}]
[null,{"$error":"#N/A"}]
[null,{"$error":"#N/A"}]
[null,{"$error":"#N/A"}]
[null,{"$error":"#N/A"}]
[null,{"$error":"#N/A"}]
[null,{"$error":"#N/A"}]
[null,{"$error":"#N/A"}]
[null,{"$error":"#N/A"}]
[null,{"$error":"#N/A"}]
[null,{"$error":"#N/A"}]
[null,{"$error":"#N/A"}]
[null,{"$error":"#N/A"}]
[null,{"$error":"#N/A"}]
[null,{"$error":"#N/A"}]
[null,{"$error":"#N/A"}]
[null,{"$error":"#N/A"}]
[null,{"$error":"#N/A"}]
[null,{"$error":"#N/A"}]
[null,{"$error":"#N/A"}]
[null,{"$error":"#N/A"}]
[null,{"$error":"#N/A"}]
[null,{"$error":"#N/A"}]
[null,{"$error":"#N/A"}]
[null,{"$error":"#N/A"}]
[null,{"$error":"#N/A"}]
[null,{"$error":"#N/A"}]
[null,{"$error":"#N/A"}]
[null,{"$error":"#N/A"}]
[null,{"$error":"#N/A"}]
[null,{"$error":"#N/A"}]
[null,{"$error":"#N/A"}]
[null,{"$error":"#N/A"}]
[null,{"$error":"#N/A"}]
[null,{"$error":"#N/A"}]
[null,{"$error":"#N/A"}]
[null,{"$error":"#N/A"}]
[null,{"$error":"#N/A"}]
[null,{"$error":"#N/A"}]
[null,{"$error":"#N/A"}]
[null,{"$error":"#N/A"}]
[null,{"$error":"#N/A"}]
[null,{"$error":"#N/A"}]
[null,{"$error":"#N/A"}]
[null,{"$error":"#N/A"}]
[null,{"$error":"#N/A"}]
[null,{"$error":"#N/A"}]
[null,{"$error":"#N/A"}]
[null,{"$error":"#N/A"}]
[null,{"$f":"VLOOKUP(A451,GenRange,2,FALSE)","v":{"$error":"#N/A"}}]
[null,{"$error":"#N/A"}]
[null,{"$error":"#N/A"}]
[null,{"$error":"#N/A"}]
[null,{"$error":"#N/A"}]
[null,{"$error":"#N/A"}]
[null,{"$error":"#N/A"}]
[null,{"$error":"#N/A"}]
[null,{"$error":"#N/A"}]
[null,{"$error":"#N/A"}]
[null,{"$error":"#N/A"}]
[null,{"$error":"#N/A"}]
[null,{"$error":"#N/A"}]
[null,{"$error":"#N/A"}]
[null,{"$error":"#N/A"}]
[null,{"$error":"#N/A"}]
[null,{"$error":"#N/A"}]
[null,{"$error":"#N/A"}]
[null,{"$error":"#N/A"}]
[null,{"$error":"#N/A"}]
[null,{"$error":"#N/A"}]
[null,{"$error":"#N/A"}]
[null,{"$error":"#N/A"}]
[null,{"$error":"#N/A"}]
[null,{"$error":"#N/A"}]
[null,{"$error":"#N/A"}]
[null,{"$error":"#N/A"}]
[null,{"$error":"#N/A"}]
[null,{"$error":"#N/A"}]
[null,{"$error":"#N/A"}]
[null,{"$error":"#N/A"}]
[null,{"$error":"#N/A"}]
[null,{"$error":"#N/A"}]
[null,{"$error":"#N/A"}]
[null,{"$error":"#N/A"}]
[null,{"$error":"#N/A"}]
[null,{"$error":"#N/A"}]
[null,{"$error":"#N/A"}]
[null,{"$error":"#N/A"}]
[null,{"$error":"#N/A"}]
[null,{"$error":"#N/A"}]
[null,{"$error":"#N/A"}]
[null,{"$error":"#N/A"}]
[null,{"$error":"#N/A"}]
[null,{"$error":"#N/A"}]
[null,{"$error":"#N/A"}]
[null,{"$error":"#N/A"}]
[null,{"$error":"#N/A"}]
[null,{"$error":"#N/A"}]
[null,{"$error":"#N/A"}]

{"sheet":"Examples Sheet","index":2,"n_rows":500,"n_cols":12,"rows_kept":500,"cut":false,"hidden":false,"merged":[]}
["Usual name","Latin name","How many?","Of what?","When?","Ordnance Survey grid reference","Definite wildlife site","Location if not on wildlife site or sub-site of wildlife site","Who saw it?","Who checked it was what was thought? (often an expert!)","How was record obtained?"]
["English Name","Scientific Name","Abundance","Sex/Stage","Date","GridRef","Site Name","Locality","Recorder","Determiner","Type of Record","Comment"]
["Grey Squirrel",{"$f":"VLOOKUP(A3,GenRange,2,FALSE)","v":"Sciurus carolinensis"},4,"Adult","2015-09-04","SU729723",null,"Reading","Caroline Coleman","Graham Hawker","Field record"]
["Kingfisher","Alcedo atthis",1,"Adult Female","2016-01-06","SU502649","Greenham Common",null,"Caroline Coleman","Graham Hawker","Field record"]
["Water vole","Arvicola terrestris","Present","Adult Female","2016-07-03","SP226007",null,"Lechlade","Caroline Coleman","Graham Hawker","Dung or other signs"]
["Blackcap","Sylvia atricapilla",6,"singing/mating calls","2016-06-04","SU886708",null,"Westmorland Park, Bracknell","Caroline Coleman","Graham Hawker","Field record"]
["Bank vole","Clethrionomys glareolus",5,"Adult","2016-05-01","SP318286",null,"Chipping Norton","Caroline Coleman","Graham Hawker","trapped in Longworth trap"]
["Jackdaw","Corvus monedula",1,"Feeding","2016-01-04","SP539072",null,"Oxford","Caroline Coleman","Graham Hawker","Field record"]
[null,{"$error":"#N/A"}]
[null,{"$error":"#N/A"}]
[null,{"$error":"#N/A"}]
[null,{"$error":"#N/A"}]
[null,{"$error":"#N/A"}]
[null,{"$error":"#N/A"}]
[null,{"$error":"#N/A"}]
[null,{"$error":"#N/A"}]
[null,{"$error":"#N/A"}]
[null,{"$error":"#N/A"}]
[null,{"$error":"#N/A"}]
[null,{"$error":"#N/A"}]
[null,{"$error":"#N/A"}]
[null,{"$error":"#N/A"}]
[null,{"$error":"#N/A"}]
[null,{"$error":"#N/A"}]
[null,{"$error":"#N/A"}]
[null,{"$error":"#N/A"}]
[null,{"$error":"#N/A"}]
[null,{"$error":"#N/A"}]
[null,{"$error":"#N/A"}]
[null,{"$error":"#N/A"}]
[null,{"$error":"#N/A"}]
[null,{"$error":"#N/A"}]
[null,{"$error":"#N/A"}]
[null,{"$error":"#N/A"}]
[null,{"$error":"#N/A"}]
[null,{"$error":"#N/A"}]
[null,{"$error":"#N/A"}]
[null,{"$error":"#N/A"}]
[null,{"$error":"#N/A"}]
[null,{"$error":"#N/A"}]
[null,{"$error":"#N/A"}]
[null,{"$error":"#N/A"}]
[null,{"$error":"#N/A"}]
[null,{"$error":"#N/A"}]
[null,{"$error":"#N/A"}]
[null,{"$error":"#N/A"}]
[null,{"$error":"#N/A"}]
[null,{"$error":"#N/A"}]
[null,{"$error":"#N/A"}]
[null,{"$error":"#N/A"}]
[null,{"$error":"#N/A"}]
[null,{"$error":"#N/A"}]
[null,{"$error":"#N/A"}]
[null,{"$error":"#N/A"}]
[null,{"$error":"#N/A"}]
[null,{"$error":"#N/A"}]
[null,{"$error":"#N/A"}]
[null,{"$error":"#N/A"}]
[null,{"$error":"#N/A"}]
[null,{"$error":"#N/A"}]
[null,{"$error":"#N/A"}]
[null,{"$error":"#N/A"}]
[null,{"$error":"#N/A"}]
[null,{"$error":"#N/A"}]
[null,{"$error":"#N/A"}]
[null,{"$error":"#N/A"}]
[null,{"$f":"VLOOKUP(A67,GenRange,2,FALSE)","v":{"$error":"#N/A"}}]
[null,{"$error":"#N/A"}]
[null,{"$error":"#N/A"}]
[null,{"$error":"#N/A"}]
[null,{"$error":"#N/A"}]
[null,{"$error":"#N/A"}]
[null,{"$error":"#N/A"}]
[null,{"$error":"#N/A"}]
[null,{"$error":"#N/A"}]
[null,{"$error":"#N/A"}]
[null,{"$error":"#N/A"}]
[null,{"$error":"#N/A"}]
[null,{"$error":"#N/A"}]
[null,{"$error":"#N/A"}]
[null,{"$error":"#N/A"}]
[null,{"$error":"#N/A"}]
[null,{"$error":"#N/A"}]
[null,{"$error":"#N/A"}]
[null,{"$error":"#N/A"}]
[null,{"$error":"#N/A"}]
[null,{"$error":"#N/A"}]
[null,{"$error":"#N/A"}]
[null,{"$error":"#N/A"}]
[null,{"$error":"#N/A"}]
[null,{"$error":"#N/A"}]
[null,{"$error":"#N/A"}]
[null,{"$error":"#N/A"}]
[null,{"$error":"#N/A"}]
[null,{"$error":"#N/A"}]
[null,{"$error":"#N/A"}]
[null,{"$error":"#N/A"}]
[null,{"$error":"#N/A"}]
[null,{"$error":"#N/A"}]
[null,{"$error":"#N/A"}]
[null,{"$error":"#N/A"}]
[null,{"$error":"#N/A"}]
[null,{"$error":"#N/A"}]
[null,{"$error":"#N/A"}]
[null,{"$error":"#N/A"}]
[null,{"$error":"#N/A"}]
[null,{"$error":"#N/A"}]
[null,{"$error":"#N/A"}]
[null,{"$error":"#N/A"}]
[null,{"$error":"#N/A"}]
[null,{"$error":"#N/A"}]
[null,{"$error":"#N/A"}]
[null,{"$error":"#N/A"}]
[null,{"$error":"#N/A"}]
[null,{"$error":"#N/A"}]
[null,{"$error":"#N/A"}]
[null,{"$error":"#N/A"}]
[null,{"$error":"#N/A"}]
[null,{"$error":"#N/A"}]
[null,{"$error":"#N/A"}]
[null,{"$error":"#N/A"}]
[null,{"$error":"#N/A"}]
[null,{"$error":"#N/A"}]
[null,{"$error":"#N/A"}]
[null,{"$error":"#N/A"}]
[null,{"$error":"#N/A"}]
[null,{"$error":"#N/A"}]
[null,{"$error":"#N/A"}]
[null,{"$error":"#N/A"}]
[null,{"$error":"#N/A"}]
[null,{"$f":"VLOOKUP(A131,GenRange,2,FALSE)","v":{"$error":"#N/A"}}]
[null,{"$error":"#N/A"}]
[null,{"$error":"#N/A"}]
[null,{"$error":"#N/A"}]
[null,{"$error":"#N/A"}]
[null,{"$error":"#N/A"}]
[null,{"$error":"#N/A"}]
[null,{"$error":"#N/A"}]
[null,{"$error":"#N/A"}]
[null,{"$error":"#N/A"}]
[null,{"$error":"#N/A"}]
[null,{"$error":"#N/A"}]
[null,{"$error":"#N/A"}]
[null,{"$error":"#N/A"}]
[null,{"$error":"#N/A"}]
[null,{"$error":"#N/A"}]
[null,{"$error":"#N/A"}]
[null,{"$error":"#N/A"}]
[null,{"$error":"#N/A"}]
[null,{"$error":"#N/A"}]
[null,{"$error":"#N/A"}]
[null,{"$error":"#N/A"}]
[null,{"$error":"#N/A"}]
[null,{"$error":"#N/A"}]
[null,{"$error":"#N/A"}]
[null,{"$error":"#N/A"}]
[null,{"$error":"#N/A"}]
[null,{"$error":"#N/A"}]
[null,{"$error":"#N/A"}]
[null,{"$error":"#N/A"}]
[null,{"$error":"#N/A"}]
[null,{"$error":"#N/A"}]
[null,{"$error":"#N/A"}]
[null,{"$error":"#N/A"}]
[null,{"$error":"#N/A"}]
[null,{"$error":"#N/A"}]
[null,{"$error":"#N/A"}]
[null,{"$error":"#N/A"}]
[null,{"$error":"#N/A"}]
[null,{"$error":"#N/A"}]
[null,{"$error":"#N/A"}]
[null,{"$error":"#N/A"}]
[null,{"$error":"#N/A"}]
[null,{"$error":"#N/A"}]
[null,{"$error":"#N/A"}]
[null,{"$error":"#N/A"}]
[null,{"$error":"#N/A"}]
[null,{"$error":"#N/A"}]
[null,{"$error":"#N/A"}]
[null,{"$error":"#N/A"}]
[null,{"$error":"#N/A"}]
[null,{"$error":"#N/A"}]
[null,{"$error":"#N/A"}]
[null,{"$error":"#N/A"}]
[null,{"$error":"#N/A"}]
[null,{"$error":"#N/A"}]
[null,{"$error":"#N/A"}]
[null,{"$error":"#N/A"}]
[null,{"$error":"#N/A"}]
[null,{"$error":"#N/A"}]
[null,{"$error":"#N/A"}]
[null,{"$error":"#N/A"}]
[null,{"$error":"#N/A"}]
[null,{"$error":"#N/A"}]
[null,{"$f":"VLOOKUP(A195,GenRange,2,FALSE)","v":{"$error":"#N/A"}}]
[null,{"$error":"#N/A"}]
[null,{"$error":"#N/A"}]
[null,{"$error":"#N/A"}]
[null,{"$error":"#N/A"}]
[null,{"$error":"#N/A"}]
[null,{"$error":"#N/A"}]
[null,{"$error":"#N/A"}]
[null,{"$error":"#N/A"}]
[null,{"$error":"#N/A"}]
[null,{"$error":"#N/A"}]
[null,{"$error":"#N/A"}]
[null,{"$error":"#N/A"}]
[null,{"$error":"#N/A"}]
[null,{"$error":"#N/A"}]
[null,{"$error":"#N/A"}]
[null,{"$error":"#N/A"}]
[null,{"$error":"#N/A"}]
[null,{"$error":"#N/A"}]
[null,{"$error":"#N/A"}]
[null,{"$error":"#N/A"}]
[null,{"$error":"#N/A"}]
[null,{"$error":"#N/A"}]
[null,{"$error":"#N/A"}]
[null,{"$error":"#N/A"}]
[null,{"$error":"#N/A"}]
[null,{"$error":"#N/A"}]
[null,{"$error":"#N/A"}]
[null,{"$error":"#N/A"}]
[null,{"$error":"#N/A"}]
[null,{"$error":"#N/A"}]
[null,{"$error":"#N/A"}]
[null,{"$error":"#N/A"}]
[null,{"$error":"#N/A"}]
[null,{"$error":"#N/A"}]
[null,{"$error":"#N/A"}]
[null,{"$error":"#N/A"}]
[null,{"$error":"#N/A"}]
[null,{"$error":"#N/A"}]
[null,{"$error":"#N/A"}]
[null,{"$error":"#N/A"}]
[null,{"$error":"#N/A"}]
[null,{"$error":"#N/A"}]
[null,{"$error":"#N/A"}]
[null,{"$error":"#N/A"}]
[null,{"$error":"#N/A"}]
[null,{"$error":"#N/A"}]
[null,{"$error":"#N/A"}]
[null,{"$error":"#N/A"}]
[null,{"$error":"#N/A"}]
[null,{"$error":"#N/A"}]
[null,{"$error":"#N/A"}]
[null,{"$error":"#N/A"}]
[null,{"$error":"#N/A"}]
[null,{"$error":"#N/A"}]
[null,{"$error":"#N/A"}]
[null,{"$error":"#N/A"}]
[null,{"$error":"#N/A"}]
[null,{"$error":"#N/A"}]
[null,{"$error":"#N/A"}]
[null,{"$error":"#N/A"}]
[null,{"$error":"#N/A"}]
[null,{"$error":"#N/A"}]
[null,{"$error":"#N/A"}]
[null,{"$f":"VLOOKUP(A259,GenRange,2,FALSE)","v":{"$error":"#N/A"}}]
[null,{"$error":"#N/A"}]
[null,{"$error":"#N/A"}]
[null,{"$error":"#N/A"}]
[null,{"$error":"#N/A"}]
[null,{"$error":"#N/A"}]
[null,{"$error":"#N/A"}]
[null,{"$error":"#N/A"}]
[null,{"$error":"#N/A"}]
[null,{"$error":"#N/A"}]
[null,{"$error":"#N/A"}]
[null,{"$error":"#N/A"}]
[null,{"$error":"#N/A"}]
[null,{"$error":"#N/A"}]
[null,{"$error":"#N/A"}]
[null,{"$error":"#N/A"}]
[null,{"$error":"#N/A"}]
[null,{"$error":"#N/A"}]
[null,{"$error":"#N/A"}]
[null,{"$error":"#N/A"}]
[null,{"$error":"#N/A"}]
[null,{"$error":"#N/A"}]
[null,{"$error":"#N/A"}]
[null,{"$error":"#N/A"}]
[null,{"$error":"#N/A"}]
[null,{"$error":"#N/A"}]
[null,{"$error":"#N/A"}]
[null,{"$error":"#N/A"}]
[null,{"$error":"#N/A"}]
[null,{"$error":"#N/A"}]
[null,{"$error":"#N/A"}]
[null,{"$error":"#N/A"}]
[null,{"$error":"#N/A"}]
[null,{"$error":"#N/A"}]
[null,{"$error":"#N/A"}]
[null,{"$error":"#N/A"}]
[null,{"$error":"#N/A"}]
[null,{"$error":"#N/A"}]
[null,{"$error":"#N/A"}]
[null,{"$error":"#N/A"}]
[null,{"$error":"#N/A"}]
[null,{"$error":"#N/A"}]
[null,{"$error":"#N/A"}]
[null,{"$error":"#N/A"}]
[null,{"$error":"#N/A"}]
[null,{"$error":"#N/A"}]
[null,{"$error":"#N/A"}]
[null,{"$error":"#N/A"}]
[null,{"$error":"#N/A"}]
[null,{"$error":"#N/A"}]
[null,{"$error":"#N/A"}]
[null,{"$error":"#N/A"}]
[null,{"$error":"#N/A"}]
[null,{"$error":"#N/A"}]
[null,{"$error":"#N/A"}]
[null,{"$error":"#N/A"}]
[null,{"$error":"#N/A"}]
[null,{"$error":"#N/A"}]
[null,{"$error":"#N/A"}]
[null,{"$error":"#N/A"}]
[null,{"$error":"#N/A"}]
[null,{"$error":"#N/A"}]
[null,{"$error":"#N/A"}]
[null,{"$error":"#N/A"}]
[null,{"$f":"VLOOKUP(A323,GenRange,2,FALSE)","v":{"$error":"#N/A"}}]
[null,{"$error":"#N/A"}]
[null,{"$error":"#N/A"}]
[null,{"$error":"#N/A"}]
[null,{"$error":"#N/A"}]
[null,{"$error":"#N/A"}]
[null,{"$error":"#N/A"}]
[null,{"$error":"#N/A"}]
[null,{"$error":"#N/A"}]
[null,{"$error":"#N/A"}]
[null,{"$error":"#N/A"}]
[null,{"$error":"#N/A"}]
[null,{"$error":"#N/A"}]
[null,{"$error":"#N/A"}]
[null,{"$error":"#N/A"}]
[null,{"$error":"#N/A"}]
[null,{"$error":"#N/A"}]
[null,{"$error":"#N/A"}]
[null,{"$error":"#N/A"}]
[null,{"$error":"#N/A"}]
[null,{"$error":"#N/A"}]
[null,{"$error":"#N/A"}]
[null,{"$error":"#N/A"}]
[null,{"$error":"#N/A"}]
[null,{"$error":"#N/A"}]
[null,{"$error":"#N/A"}]
[null,{"$error":"#N/A"}]
[null,{"$error":"#N/A"}]
[null,{"$error":"#N/A"}]
[null,{"$error":"#N/A"}]
[null,{"$error":"#N/A"}]
[null,{"$error":"#N/A"}]
[null,{"$error":"#N/A"}]
[null,{"$error":"#N/A"}]
[null,{"$error":"#N/A"}]
[null,{"$error":"#N/A"}]
[null,{"$error":"#N/A"}]
[null,{"$error":"#N/A"}]
[null,{"$error":"#N/A"}]
[null,{"$error":"#N/A"}]
[null,{"$error":"#N/A"}]
[null,{"$error":"#N/A"}]
[null,{"$error":"#N/A"}]
[null,{"$error":"#N/A"}]
[null,{"$error":"#N/A"}]
[null,{"$error":"#N/A"}]
[null,{"$error":"#N/A"}]
[null,{"$error":"#N/A"}]
[null,{"$error":"#N/A"}]
[null,{"$error":"#N/A"}]
[null,{"$error":"#N/A"}]
[null,{"$error":"#N/A"}]
[null,{"$error":"#N/A"}]
[null,{"$error":"#N/A"}]
[null,{"$error":"#N/A"}]
[null,{"$error":"#N/A"}]
[null,{"$error":"#N/A"}]
[null,{"$error":"#N/A"}]
[null,{"$error":"#N/A"}]
[null,{"$error":"#N/A"}]
[null,{"$error":"#N/A"}]
[null,{"$error":"#N/A"}]
[null,{"$error":"#N/A"}]
[null,{"$error":"#N/A"}]
[null,{"$f":"VLOOKUP(A387,GenRange,2,FALSE)","v":{"$error":"#N/A"}}]
[null,{"$error":"#N/A"}]
[null,{"$error":"#N/A"}]
[null,{"$error":"#N/A"}]
[null,{"$error":"#N/A"}]
[null,{"$error":"#N/A"}]
[null,{"$error":"#N/A"}]
[null,{"$error":"#N/A"}]
[null,{"$error":"#N/A"}]
[null,{"$error":"#N/A"}]
[null,{"$error":"#N/A"}]
[null,{"$error":"#N/A"}]
[null,{"$error":"#N/A"}]
[null,{"$error":"#N/A"}]
[null,{"$error":"#N/A"}]
[null,{"$error":"#N/A"}]
[null,{"$error":"#N/A"}]
[null,{"$error":"#N/A"}]
[null,{"$error":"#N/A"}]
[null,{"$error":"#N/A"}]
[null,{"$error":"#N/A"}]
[null,{"$error":"#N/A"}]
[null,{"$error":"#N/A"}]
[null,{"$error":"#N/A"}]
[null,{"$error":"#N/A"}]
[null,{"$error":"#N/A"}]
[null,{"$error":"#N/A"}]
[null,{"$error":"#N/A"}]
[null,{"$error":"#N/A"}]
[null,{"$error":"#N/A"}]
[null,{"$error":"#N/A"}]
[null,{"$error":"#N/A"}]
[null,{"$error":"#N/A"}]
[null,{"$error":"#N/A"}]
[null,{"$error":"#N/A"}]
[null,{"$error":"#N/A"}]
[null,{"$error":"#N/A"}]
[null,{"$error":"#N/A"}]
[null,{"$error":"#N/A"}]
[null,{"$error":"#N/A"}]
[null,{"$error":"#N/A"}]
[null,{"$error":"#N/A"}]
[null,{"$error":"#N/A"}]
[null,{"$error":"#N/A"}]
[null,{"$error":"#N/A"}]
[null,{"$error":"#N/A"}]
[null,{"$error":"#N/A"}]
[null,{"$error":"#N/A"}]
[null,{"$error":"#N/A"}]
[null,{"$error":"#N/A"}]
[null,{"$error":"#N/A"}]
[null,{"$error":"#N/A"}]
[null,{"$error":"#N/A"}]
[null,{"$error":"#N/A"}]
[null,{"$error":"#N/A"}]
[null,{"$error":"#N/A"}]
[null,{"$error":"#N/A"}]
[null,{"$error":"#N/A"}]
[null,{"$error":"#N/A"}]
[null,{"$error":"#N/A"}]
[null,{"$error":"#N/A"}]
[null,{"$error":"#N/A"}]
[null,{"$error":"#N/A"}]
[null,{"$error":"#N/A"}]
[null,{"$f":"VLOOKUP(A451,GenRange,2,FALSE)","v":{"$error":"#N/A"}}]
[null,{"$error":"#N/A"}]
[null,{"$error":"#N/A"}]
[null,{"$error":"#N/A"}]
[null,{"$error":"#N/A"}]
[null,{"$error":"#N/A"}]
[null,{"$error":"#N/A"}]
[null,{"$error":"#N/A"}]
[null,{"$error":"#N/A"}]
[null,{"$error":"#N/A"}]
[null,{"$error":"#N/A"}]
[null,{"$error":"#N/A"}]
[null,{"$error":"#N/A"}]
[null,{"$error":"#N/A"}]
[null,{"$error":"#N/A"}]
[null,{"$error":"#N/A"}]
[null,{"$error":"#N/A"}]
[null,{"$error":"#N/A"}]
[null,{"$error":"#N/A"}]
[null,{"$error":"#N/A"}]
[null,{"$error":"#N/A"}]
[null,{"$error":"#N/A"}]
[null,{"$error":"#N/A"}]
[null,{"$error":"#N/A"}]
[null,{"$error":"#N/A"}]
[null,{"$error":"#N/A"}]
[null,{"$error":"#N/A"}]
[null,{"$error":"#N/A"}]
[null,{"$error":"#N/A"}]
[null,{"$error":"#N/A"}]
[null,{"$error":"#N/A"}]
[null,{"$error":"#N/A"}]
[null,{"$error":"#N/A"}]
[null,{"$error":"#N/A"}]
[null,{"$error":"#N/A"}]
[null,{"$error":"#N/A"}]
[null,{"$error":"#N/A"}]
[null,{"$error":"#N/A"}]
[null,{"$error":"#N/A"}]
[null,{"$error":"#N/A"}]
[null,{"$error":"#N/A"}]
[null,{"$error":"#N/A"}]
[null,{"$error":"#N/A"}]
[null,{"$error":"#N/A"}]
[null,{"$error":"#N/A"}]
[null,{"$error":"#N/A"}]
[null,{"$error":"#N/A"}]
[null,{"$error":"#N/A"}]
[null,{"$error":"#N/A"}]
[null,{"$error":"#N/A"}]

{"sheet":"Dictionary","index":3,"n_rows":264,"n_cols":2,"rows_kept":264,"cut":false,"hidden":true,"merged":[]}
["14-spot Ladybird","Propylea quattuordecimpunctata"]
["a Newt","Triturus sp."]
["Adder","Vipera berus"]
["Adder's-tongue Fern","Ophioglossum vulgatum"]
["Autumn Gentian","Gentianella amarella"]
["Azure Damselfly","Coenagrion puella"]
["Badger","Meles meles"]
["Banded Demoiselle ","Calopteryx splendens"]
["Bank vole","Clethrionomys glareolus"]
["Barbastelle","Barbastella barbastellus"]
["Barn Owl","Tyto alba"]
["Beautiful Demoiselle","Calopteryx virgo"]
["Bechstein's bat","Myotis bechsteini"]
["Bee Orchid","Ophrys apifera"]
["Black Redstart","Phoenicurus ochruros"]
["Blackbird","Turdus merula"]
["Blackcap","Sylvia atricapilla"]
["Black-headed Gull","Larus ridibundus"]
["Black-tailed Skimmer","Orthetrum cancellatum"]
["Blue Tit","Parus caeruleus"]
["Blue-tailed Damselfly","Ischnura elegans"]
["Brimstone","Gonepteryx rhamni"]
["Broad-bodied Chaser ","Libellula depressa"]
["Broad-leaved Helleborine","Epipactis helleborine"]
["Brown Argus","Aricia agestis"]
["Brown Hare","Lepus europaeus"]
["Brown Hawker ","Aeshna grandis"]
["Brown long-eared bat","Plecotus auritus"]
["Brown Rat","Rattus norvegicus"]
["Brown Trout","Salmo trutta fario"]
["Buff-tailed Bumblebee","Bombus terrestris"]
["Bullfinch","Pyrrhula pyrrhula"]
["Bullhead","Cottus gobio"]
["Buzzard","Buteo buteo"]
["Carrion Crow","Corvus corone"]
["Cetti’s Warbler","Cettia cetti"]
["Chaffinch","Fringilla coelebs"]
["Chiffchaff","Phylloscopus collybita"]
["Chiltern Gentian","Gentianella germanica"]
["Chinese Water Deer","Hydropotes inermis"]
["Cinnabar","Tyria jacobaeae"]
["Clouded Yellow","Colias croceus"]
["Coal Tit","Parus ater"]
["Comma","Polygonia c-album"]
["Common Blue","Polyommatus icarus"]
["Common Blue Damselfly","Enallagma cyathigerum"]
["Common Carder Bumblebee","Bombus pascuorum"]
["Common Cockchafer","Melolontha melolontha"]
["Common Darter","Sympetrum striolatum"]
["Common Frog","Rana temporaria"]
["Common Green Grasshopper","Omocestus viridulus"]
["Common Groundhopper","Tetrix undulata"]
["Common Hawker","Aeshna juncea"]
["Common pipistrelle","Pipistrellus pipistrellus"]
["Common shrew","Sorex araneus"]
["Common Spotted-orchid","Dactylorhiza fuchsii"]
["Common Toad","Bufo bufo"]
["Common Twayblade","Listera ovata"]
["Common vole","Microtus arvalis"]
["Common Whitethroat","Sylvia communis"]
["Coot","Fulica atra"]
["Cormorant","Phalacrocorax carbo"]
["Corn Bunting","Miliaria calandra"]
["Cowslip","Primula veris"]
["Cuckoo","Cuculus canorus"]
["Dark Green Fritillary","Argynnis aglaja"]
["Daubenton's bat","Myotis daubentoni"]
["Devil's-bit Scabious","Succisa pratensis"]
["Dingy Skipper","Erynnis tages"]
["Duke of Burgundy","Hamearis lucina"]
["Dunnock","Prunella modularis"]
["Early Marsh-orchid","Dactylorhiza incarnata"]
["Early Purple Orchid","Orchis mascula"]
["Elephant Hawk-moth","Deilephila elpenor"]
["Emerald Damselfly ","Lestes sponsa"]
["Emperor Dragonfly ","Anax imperator"]
["Essex Skipper","Thymelicus lineola"]
["Fallow Deer","Dama dama"]
["Fat Dormouse","Glis glis"]
["Field Grasshopper","Chorthippus brunneus"]
["Field vole","Microtus agrestis"]
["Fieldfare","Turdus pilaris"]
["Firecrest","Regulus ignicapillus"]
["Fly Orchid","Ophrys insectifera"]
["Four-spotted Chaser","Libellula quadrimaculata"]
["Fragrant Orchid","Gymnadenia conopsea"]
["Freshwater Crayfish","Austropotamobius pallipes"]
["Frog Orchid","Coeloglossum viride"]
["Garden Warbler","Sylvia borin"]
["Gatekeeper","Pyronia tithonus"]
["Glow-worm","Lampyris noctiluca"]
["Goldcrest","Regulus regulus"]
["Goldfinch","Carduelis carduelis"]
["Grass Snake","Natrix natrix"]
["Grasshopper Warbler","Locustella naevia"]
["Great Crested Grebe","Podiceps cristatus"]
["Great Crested Newt","Triturus cristatus"]
["Great Green Bush-Cricket","Tettigonia viridissima"]
["Great Spotted Woodpecker","Dendrocopos major"]
["Great Tit","Parus major"]
["Greater Butterfly orchid","Platanthera chlorantha"]
["Greater Horntail Wasp","Urocerus gigas"]
["Green Hairstreak","Callophrys rubi"]
["Green Woodpecker","Picus viridis"]
["Greenfinch","Carduelis chloris"]
["Green-veined White","Pieris napi"]
["Green-winged Orchid","Orchis morio"]
["Grey Heron","Ardea cinerea"]
["Grey Squirrel","Sciurus carolinensis"]
["Grizzled Skipper","Pyrgus malvae"]
["Harlequin Ladybird","Harmonia axyridis"]
["Harvest mouse","Micromys minutus"]
["Hazel Dormouse","Muscardinus avellanarius"]
["Heath Spotted-orchid","Dactylorhiza maculata"]
["Hedgehog","Erinaceus europaeus"]
["Hobby","Falco subbuteo"]
["Holly Blue","Celastrina argiolus"]
["Honey Bee","Apis mellifera"]
["Hornet","Vespa crabro"]
["House Martin","Delichon urbica"]
["House Mouse","Mus musculus"]
["House Sparrow","Passer domesticus"]
["Humming-bird Hawk-moth","Macroglossum stellatarum"]
["Indian Balsam","Impatiens glandulifera"]
["Jackdaw","Corvus monedula"]
["Japanese Knotweed","Fallopia japonica"]
["Jay","Garrulus glandarius"]
["Kestrel","Falco tinnunculus"]
["Kingfisher","Alcedo atthis"]
["Lady orchid","Orchis purpurea"]
["Lapwing","Vanellus vanellus"]
["Large Garden Bumblebee","Bombus ruderatus"]
["Large Red Damselfly","Pyrrhosoma nymphula"]
["Large Skipper","Ochlodes venata"]
["Large White","Pieris brassicae"]
["Leisler's bat","Nyctalus leisleri"]
["Lesser Black-backed Gull","Larus fuscus"]
["Lesser Butterfly-orchid","Platanthera bifolia"]
["Lesser Marsh Grasshopper","Chorthippus albomarginatus"]
["Lesser Spotted Woodpecker","Dendrocopos minor"]
["Lesser Whitethroat","Sylvia curruca"]
["Little Egret","Egretta garzetta"]
["Little Grebe","Tachybaptus ruficollis"]
["Lizard Orchid","Himantoglossum hircinum"]
["Loddon Lily","Leucojum aestivum"]
["Long-tailed Tit","Aegithalos caudatus"]
["Long-winged Conehead","Conocephalus discolor"]
["Magpie","Pica pica"]
["Mallard","Anas platyrhynchos"]
["Marbled White","Melanargia galathea"]
["Marsh Fritillary","Euphydryas aurinia"]
["Marsh Helleborine","Epipactis palustris"]
["Marsh Tit","Parus palustris"]
["Meadow Brown","Maniola jurtina"]
["Meadow Grasshopper","Chorthippus parallelus"]
["Merlin","Falco columbarius"]
["Migrant Hawker ","Aeshna mixta"]
["Military Orchid","Orchis militaris"]
["Mink","Mustela vison"]
["Mistle Thrush","Turdus viscivorus"]
["Mistletoe","Viscum album"]
["Mole","Talpa europaea"]
["Monkey orchid","Orchis simia"]
["Moorhen","Gallinula chloropus"]
["Muntjac","Muntiacus reevesi"]
["Mute Swan","Cygnus olor"]
["Natterer's bat","Myotis nattereri"]
["Natterjack Toad","Bufo calamita"]
["New Zealand Pigmyweed","Crassula helmsii"]
["Nightjar","Caprimulgus europaeus"]
["Noctule bat","Nyctalus noctula"]
["Nuthatch","Sitta europaea"]
["Oak Bush-Cricket","Meconema thalassinum"]
["Orange Tip","Anthocharis cardamines"]
["Otter","Lutra lutra"]
["Painted Lady","Cynthia cardui"]
["Palmate Newt","Triturus helveticus"]
["Peacock","Inachis io"]
["Peregrine Falcon","Falco peregrinus"]
["Pheasant","Phasianus colchicus"]
["Pied Wagtail","Motacilla alba yarrellii"]
["Pike","Esox lucius"]
["Polecat","Mustela putorius"]
["Primrose","Primula vulgaris"]
["Pygmy shrew","Sorex minutus"]
["Pyramidal Orchid","Anacamptis pyramidalis"]
["Rabbit","Oryctolagus cuniculus"]
["Raven","Corvus corax"]
["Red Admiral","Vanessa atalanta"]
["Red Deer","Cervus elaphus"]
["Red Fox","Vulpes vulpes"]
["Red Kite","Milvus milvus"]
["Red Squirrel","Sciurus vulgaris"]
["Red-eyed Damselfly","Erythromma najas"]
["Redstart","Phoenicurus phoenicurus"]
["Red-tailed Bumblebee","Bombus lapidarius"]
["Redwing","Turdus iliacus"]
["Reed Bunting","Emberiza schoeniclus"]
["Reed Warbler","Acrocephalus scirpaceus"]
["Ringlet","Aphantopus hyperantus"]
["Robin","Erithacus rubecula"]
["Roe Deer","Capreolus capreolus"]
["Roesel’s Bush-Cricket","Metrioptera roeselii"]
["Rook","Corvus frugilegus"]
["Ruddy Darter","Sympetrum sanguineum"]
["Sand Lizard","Lacerta agilis"]
["Scarlet Tiger","Callimorpha dominula"]
["Serotine","Eptesicus serotinus"]
["Short-eared Owl","Asio flammeus"]
["Short-winged Conehead","Conocephalus dorsalis"]
["Signal Crayfish","Pacifastacus leniusculus"]
["Sika Deer","Cervus nippon"]
["Skylark","Alauda arvensis"]
["Slender Groundhopper","Tetrix subulata"]
["Slow-Worm","Anguis fragilis"]
["Small Copper","Lycaena phlaeas"]
["Small Red-eyed Damselfly","Erythromma viridulum"]
["Small Skipper","Thymelicus sylvestris"]
["Small Tortoiseshell","Aglais urticae"]
["Small White","Pieris rapae"]
["Smooth Newt","Triturus vulgaris"]
["Smooth Snake","Coronella austriaca"]
["Song Thrush","Turdus philomelos"]
["Southern Hawker","Aeshna cyanea"]
["Southern Marsh-orchid","Dactylorhiza praetermissa"]
["Sparrowhawk","Accipiter nisus"]
["Speckled Bush-Cricket","Leptophyes punctatissima"]
["Speckled Wood","Pararge aegeria"]
["Spotted Flycatcher","Muscicapa striata"]
["Stag Beetle","Lucanus cervus"]
["Starling","Sturnus vulgaris"]
["Stoat","Mustela erminea"]
["Stonechat","Saxicola torquata"]
["Swallow","Hirundo rustica"]
["Swift","Apus apus"]
["Tawny Owl","Strix aluco"]
["The Bird's-nest Orchid","Neottia nidus-avis"]
["The Early Bumblebee","Bombus pratorum"]
["Three-banded White-tail Bumblebee","Bombus hortorum"]
["Three-spined Stickleback","Gasterosteus aculeatus"]
["Toothwort","Lathraea squamaria"]
["Tree Sparrow","Passer montanus"]
["Treecreeper","Certhia familiaris"]
["Turtle Dove","Streptopelia turtur"]
["Twayblade","Listera ovata"]
["Two-spot Ladybird","Adalia bipunctata"]
["Two-spot Ladybird","Adalia bipunctata"]
["Violet helleborine","Epipactis purpurata"]
["Viviparous Lizard","Lacerta vivipara"]
["Wall","Lasiommata megera"]
["Water shrew","Neomys fodiens"]
["Water vole","Arvicola terrestris"]
["Waxwing","Bombycilla garrulus"]
["Weasel","Mustela nivalis"]
["White Helleborine","Cephalanthera damasonium"]
["White-legged Damselfly","Platycnemis pennipes"]
["White-tailed Bumblebee","Bombus lucorum"]
["Wild Service-tree","Sorbus torminalis"]
["Willow Tit","Parus montanus"]
["Willow Warbler","Phylloscopus trochilus"]
["Wood mouse","Apodemus sylvaticus"]
["Wood Pigeon","Columba palumbus"]
["Wren","Troglodytes troglodytes"]
["Yellowhammer","Emberiza citrinella"]

{"sheet":"Valid Term List","index":4,"n_rows":111,"n_cols":2,"rows_kept":111,"cut":false,"hidden":true,"merged":[]}
["Adult","artificial substrate"]
["Adult Female","Attracted to light"]
["Adult Male","Attracted to light"]
["adult reared","auditory record"]
["adult sitting on nest","aural bat detector"]
["aecial","baited"]
["alive","beaten"]
["anamorph","bird pellet"]
["Badger sett","bone"]
["bathing","bottled"]
["Breeding confirmed","building"]
["Breeding Pair","burrow, nesthole"]
["Breeding probable","burrow/nesthole, occupied"]
["Burrow","burrow/nesthole, unoccupied"]
["calling/vocalising","Burrowing"]
["carrying food","Burrowing"]
["cocoon (adult or larval)","butterfly transect day total"]
["colony","canned"]
["Copulating Pair","casualty (not road)"]
["copulating/mating","caught"]
["dead","collected from rot hole"]
["displaying","Collection"]
["diving","culture"]
["Droppings","Dead (by predator)"]
["egg/ovum","Dead (killed by human)"]
["egg/ovum, emerged","Dead (reason unknown)"]
["Exuvia","dead on road"]
["feeding","Drowned/Drowning"]
["Female","Dung or other signs"]
["female","dung/droppings/frass/pellet, etc."]
["Flowering","electrofishing"]
["flowering","empty egg/egg case"]
["Fruiting","Evidence of breeding"]
["fruiting","exuvia/empty pupa"]
["holding territory","feather"]
["hunting","feeding damage, etc"]
["immature","field record"]
["immature female","Fighting"]
["in bud","Flying"]
["in flight","from leaf litter"]
["Juvenile","funnel extraction"]
["juvenile","Genitalia examined"]
["Juvenile Female","grab sample"]
["Juvenile Male","hair/fur"]
["larva","Hibernaculum"]
["larva, adult reared","house"]
["Larvae","incubated in moist chamber"]
["larval case","kick sample"]
["larval case, emerged","larval case,empty"]
["Male","Litter sample"]
["male","Longworth Trap"]
["mature plant","lost voucher"]
["migrating","Mating"]
["Nest","microscopically examined"]
["nest building/gathering materials","mole hill"]
["Nesting Pair","nest"]
["Nymph","netted"]
["occasional","nocturnal record"]
["ovipositing","olfactory record"]
["Pair","On its back"]
["passage","other"]
["planted","other bits"]
["possible breeding","photographed"]
["possible roost","pitfall trap"]
["present","poisoned"]
["probable breeding","pooted"]
["proved breeding","Reference"]
["pupa, adult reared","reported to recorder"]
["pupa/pupal cocoon","ringing recovery/retrap"]
["Pupae","ringing/tagging record"]
["Rabbit warren","rod and line"]
["roosting","Roost"]
["seedling","Sett"]
["Signs","shell (empty)"]
["singing/mating calls","shot"]
["Spore","sieved"]
["stromatic","sketched/drawn"]
["subadult","skin"]
["subadult female","sorted from a tussock"]
["Summer","Specimen provided"]
["Tadpole","subterranean trap"]
["teleomorph","sugar baited"]
["telial","swept"]
["Tracks","tracks/trail"]
["winter plumage/pelage","trapped (other)"]
["Wintering","trapped at a Monkswood light trap"]
["with unripe fruits","trapped at actinic light"]
["worker","trapped at electrocuting grid"]
["young tree","trapped at light"]
[null,"trapped at mercury vapour light"]
[null,"trapped at tungsten light"]
[null,"trapped in Anderson trap"]
[null,"trapped in breakback trap"]
[null,"trapped in carrion baited trap"]
[null,"trapped in emergence trap"]
[null,"trapped in Helgoland trap"]
[null,"trapped in Longworth trap"]
[null,"trapped in Malaise trap"]
[null,"trapped in Manitoba trap"]
[null,"trapped in mist net"]
[null,"trapped in suction trap"]
[null,"trapped in vehicle mounted trap"]
[null,"trapped in water trap"]
[null,"trapped using cannon/rocket net"]
[null,"tree"]
[null,"under bark"]
[null,"under stones"]
[null,"voucher specimen"]
[null,"Warren"]
[null,"web"]
[null,"wing, wing-case"]